Cogmind - Beta 13 @@@ ROGUE MODE // 2024.04.18 @ 15:28:49 Player: Morphaana Result: Self-destructed Performance ------------- Evolutions (6) 3000 Regions Visited (12) 2400 Robots Destroyed (152) 760 Value Destroyed (4099) 4099 Prototype IDs (30) 600 Alien Tech Used (0) 0 Bonus (1016) 1016 TOTAL SCORE: 11875 Bonus ------- High Alert Combat Kills 136 Follower Combat Kills 80 Entered DSFs 500 Aligned with FarCom 300 Cogmind --------- Core Integrity 1034/1150 Matter 178/300 Energy 150/150 System Corruption 3% Temperature Cool (0) Movement Flying (34) Location -4/Factory Parts ------- > --- POWER (1) -------- Micro Fission Core > --- PROPULSION (6) --- Improved Flight Unit Improved Flight Unit Nuclear Pulse Thruster > --- UTILITY (10) ----- Advanced Visual Processing Unit Improved Signal Interpreter 0b10 Alert Chip Advanced ECM Suite Hacking Suite Hacking Suite Hacking Suite System Shield Trap Reconfigurator > --- WEAPON (2) ------- (None) > --- INVENTORY (5) ---- Authchip [Device] Authchip [Processor] Peak State ------------ > --- POWER ------------ Light Fission Core > --- PROPULSION ------- Improved Flight Unit Flying Fortress v7 > --- UTILITY ---------- High-capacity Storage Unit Advanced Visual Processing Unit Improved Signal Interpreter 0b10 Alert Chip Hacking Suite Hacking Suite Hacking Suite Hacking Suite Trap Reconfigurator > --- WEAPON ----------- Rocket Launcher Scythe > --- INVENTORY -------- Light Fission Core Light Fission Core Micro Fission Core Micro Fission Core Improved Flight Unit Improved Flight Unit Improved Flight Unit Improved Flight Unit Improved Flight Unit Xenon Bombardment Thruster Nuclear Pulse Thruster Nuclear Pulse Thruster Nuclear Pulse Thruster Advanced ECM Suite Improved Light Armor Plating Hacking Suite Hacking Suite Rocket Launcher [Rating: 86] Favorites ----------- Power Cooled Ion Engine Engine Cooled Ion Engine Power Core Light Fission Core Propulsion Improved Treads Treads Improved Treads Leg Aluminum Leg Flight Unit Flying Fortress v7 Utility Hacking Suite Device Structural Scanner Storage High-capacity Storage Unit Processor Signal Interpreter Hackware Hacking Suite Protection Light Armor Plating Weapon Improved Assault Rifle Energy Gun Medium Laser Ballistic Gun Improved Assault Rifle Launcher Grenade Launcher Impact Weapon Mace Slashing Weapon Scythe Build | -11 -10 -10 -9 -9 -9 -8 -8 -7 -6 -5 -5 -4 ------- Run | Yrd Mat Min Mat Min Exi Min Mat Fac Fac Fac DSF Fac Slots Evolved 12 | . . . 2 . . . 2 2 2 2 . 2 Power . | . . . . . . . . . . . . . Propulsion 4 | . . . 1 . . . . 1 . 1 . 1 Utility 8 | . . . 1 . . . 2 1 2 1 . 1 Weapon . | . . . . . . . . . . . . . Parts Attached 144 | 5 11 12 38 9 . 1 31 10 9 2 12 4 Power 15 | 1 2 . 1 1 . . 3 4 1 . 1 1 Engine 10 | 1 2 . 1 1 . . 3 2 . . . . Core 5 | . . . . . . . . 2 1 . 1 1 Reactor . | . . . . . . . . . . . . . Propulsion 38 | 2 1 2 13 1 . . 9 1 . 1 7 1 Treads 23 | . 1 . 12 1 . . 9 . . . . . Leg 4 | 2 . 2 . . . . . . . . . . Wheel . | . . . . . . . . . . . . . Hover . | . . . . . . . . . . . . . Flight 11 | . . . 1 . . . . 1 . 1 7 1 Utility 39 | . 2 3 10 1 . . 10 2 6 . 3 2 Device 3 | . . . . . . . . . 1 . 2 . Storage 7 | . 1 2 4 . . . . . . . . . Processor 6 | . 1 . . . . . 3 . 2 . . . Hackware 6 | . . . . . . . 1 1 2 . . 2 Protection 17 | . . 1 6 1 . . 6 1 1 . 1 . Artifact . | . . . . . . . . . . . . . Weapon 52 | 2 6 7 14 6 . 1 9 3 2 1 1 . Energy Gun 5 | . . 4 1 . . . . . . . . . Energy Cannon . | . . . . . . . . . . . . . Ballistic Gun 29 | 2 3 2 11 4 . . 7 . . . . . Ballistic Cannon . | . . . . . . . . . . . . . Launcher 14 | . 3 1 2 2 . 1 1 1 1 1 1 . Special Weapon . | . . . . . . . . . . . . . Impact Weapon 1 | . . . . . . . 1 . . . . . Slashing Weapon 3 | . . . . . . . . 2 1 . . . Piercing Weapon . | . . . . . . . . . . . . . Special Melee Weapon . | . . . . . . . . . . . . . Unidentified Prototypes 5 | . . . 3 . . . 1 1 . . . . Parts Lost 37 | . 1 2 6 3 . . 11 . 2 . 6 6 Power 6 | . 1 . . 1 . . 1 . 1 . 1 1 Propulsion 13 | . . . 4 . . . 4 . . . 2 3 Utility 8 | . . . 1 1 . . 3 . 1 . 1 1 Weapon 10 | . . 2 1 1 . . 3 . . . 2 1 Highest Loss Streak 5 | . 1 2 2 2 . . 2 . 2 . 5 5 To Critical Strikes . | . . . . . . . . . . . . . Average Slot Usage (%) 92 | . 82 93 97 99 100 100 98 68 68 . 82 78 Engine 10 | . 13 14 11 10 11 11 9 6 4 . . . Treads 21 | . 12 5 29 32 33 33 26 . . . . . Leg 2 | . 2 17 . . . . . . . . . . Flight 1 | . . . . . . . . 6 6 . 14 26 Storage 10 | . 12 13 11 11 11 11 9 7 6 . 5 . Processor 13 | . 12 14 11 11 11 11 19 15 9 . 17 15 Hackware 4 | . . . . . . . 8 14 26 . 22 18 Protection 6 | . . . 10 10 11 11 7 7 . . . . Energy Gun 2 | . . 17 3 . . . . . . . . . Ballistic Gun 15 | . 27 6 17 21 22 17 17 . . . . . Naked Turns . | . . . . . . . . . . . . . Heaviest Build 97 | 6 20 27 97 57 57 57 63 50 49 52 54 15 Greatest Support 69 | 20 20 20 69 69 69 69 69 50 50 55 55 33 Greatest Overweight (x) 10 | . . 1 1 . . . 1 . . . 10 . Average Overweight (x) . | . . . . . . . . . . . . . Largest Inventory Capacity 25 | 5 10 15 25 20 20 20 20 20 20 20 20 5 Average Capacity 16 | 5 9 9 15 20 20 20 20 20 20 20 19 5 Most Carried 20 | 2 7 10 19 19 20 20 20 17 16 13 20 4 Average Carried 13 | . 5 7 12 17 17 20 19 14 14 12 14 2 Final Capacity 20 | 5 10 10 20 20 20 20 20 20 20 20 5 5 Final Carried 20 | 2 6 10 19 16 20 20 16 17 14 12 5 2 Class Distribution -------------------- 54% | Mutant 31% | Scavenger-Mutant 12% | Hacker-Mutant Dominant Class ---------------- Mutant | -10/Materials Scavenger-Mutant | -10/Mines Mutant | -9/Materials Mutant | -9/Mines Mutant | -9/Exiles Mutant | -8/Mines Scavenger-Mutant | -8/Materials Hacker-Mutant | -7/Factory Hacker-Mutant | -6/Factory Hacker-Mutant | -5/Factory Hacker-Mutant | -5/DSF Hacker-Sprinter | -4/Factory Resources | -11 -10 -10 -9 -9 -9 -8 -8 -7 -6 -5 -5 -4 ----------- Run | Yrd Mat Min Mat Min Exi Min Mat Fac Fac Fac DSF Fac Matter Collected 3658 | 250 310 266 918 189 . . 1308 113 271 . 33 . Remotely . | . . . . . . . . . . . . . Salvage Created 5126 | 31 345 272 1699 160 . 21 2133 177 288 . . . Parts 330 | 4 29 12 126 15 . 6 103 16 19 . . . Haulers Intercepted 12 | . 1 . 5 . . . 6 . . . . . Recyclers Shooed 1 | . . . . 1 . . . . . . . . Parts Field Recycled . | . . . . . . . . . . . . . Retrieved Matter . | . . . . . . . . . . . . . Parts Self-Destructed . | . . . . . . . . . . . . . Prevented . | . . . . . . . . . . . . . Kills | -11 -10 -10 -9 -9 -9 -8 -8 -7 -6 -5 -5 -4 ------- Run | Yrd Mat Min Mat Min Exi Min Mat Fac Fac Fac DSF Fac Combat Hostiles Destroyed 110 | 1 10 6 36 10 . 4 33 5 5 . . . Melee 3 | . . . . . . . . 2 1 . . . Guns 85 | 1 6 6 32 7 . . 33 . . . . . AOE 21 | . 4 . 3 3 . 4 . 3 4 . . . Classes Destroyed 13 | 1 5 . 2 2 . . 2 1 . . . . Worker 7 | . 1 . 1 . . . 2 . 3 . . . Builder 2 | . . . 1 . . . 1 . . . . . Tunneler 1 | . . . . . . . 1 . . . . . Hauler 12 | . 1 . 5 . . . 6 . . . . . Recycler 2 | . . . . . . . . 1 1 . . . Operator 5 | . 1 . 3 . . . . 1 . . . . Watcher 13 | . 3 . 4 . . . 5 . 1 . . . Swarmer 39 | . 6 . 9 7 . 4 3 5 5 . . . Grunt 50 | 1 4 6 18 1 . . 20 . . . . . Duelist 1 | . . . . 1 . . . . . . . . Sentry 17 | . . . 9 . . . 8 . . . . . Demolisher 1 | . . . . 1 . . . . . . . . Specialist 2 | . . . . . . . 2 . . . . . Best Kill Streak 9 | 1 4 2 9 4 . 4 8 4 6 . . . Combat Bots Only 9 | 1 3 2 9 4 . 4 4 3 4 . . . Max Kills in Single Turn 3 | 1 2 1 3 3 . 3 1 2 3 . . . Gunslinging 1 | . . . 1 . . . . . . . . . Exploded 3 | . 2 . 3 2 . 3 . 2 2 . . . Melee 1 | . . . . . . . . 1 1 . . . Uniques/NPCs Destroyed . | . . . . . . . . . . . . . Combat | -11 -10 -10 -9 -9 -9 -8 -8 -7 -6 -5 -5 -4 -------- Run | Yrd Mat Min Mat Min Exi Min Mat Fac Fac Fac DSF Fac Hostile Shots Fired 656 | 7 58 32 145 49 . 2 197 32 83 . 37 14 Missed 189 | 1 9 13 32 6 . 1 43 13 45 . 18 8 Damage Taken 7296 | 67 510 249 1437 680 . 9 2374 318 481 . 791 380 Core 1066 | 12 126 41 237 67 . . 307 18 32 . 110 116 Absorbed by Shields 47 | . . . . . . . . . . . 47 . Regen/Repaired (Parts) 177 | . . . 128 . . . . . 49 . . . Core Remaining (%) 67 | 95 . 28 . . . 24 44 97 96 . 89 . Volleys Fired 396 | 3 42 22 120 18 . 2 181 2 5 . 1 . Largest 2 | 2 2 2 2 2 . 1 2 1 1 . 1 . Hottest 100 | 40 50 100 100 53 . 30 50 33 33 . 33 . Shots Fired 745 | 6 80 37 236 33 . 2 343 2 5 . 1 . Gun 725 | 6 74 37 234 31 . . 343 . . . . . Cannon . | . . . . . . . . . . . . . Launcher 20 | . 6 . 2 2 . 2 . 2 5 . 1 . Special . | . . . . . . . . . . . . . Kinetic 666 | 6 74 26 186 31 . . 343 . . . . . Thermal 59 | . . 11 48 . . . . . . . . . Explosive 20 | . 6 . 2 2 . 2 . 2 5 . 1 . Electromagnetic . | . . . . . . . . . . . . . Robot Hit Streak 22 | 2 12 21 22 11 . . 21 . . . . . Robot Miss Streak 6 | 1 5 3 4 2 . . 5 6 . . . . Penetration Max . | . . . . . . . . . . . . . Secondary Targets 2 | . . . 1 . . . 1 . . . . . Max Gunslinging Chain 1 | . . . 1 . . . 1 . . . . . Shots Hit Robots 527 | 4 46 25 170 19 . . 252 5 6 . . . Core Hits 245 | 2 24 15 74 13 . 3 95 8 11 . . . Critical Kills 2 | . . . 1 . . . 1 . . . . . Critical Parts Destroyed 2 | . . . . . . . 2 . . . . . Critical Strikes 10 | . . 1 5 . . . 3 . 1 . . . Burn 4 | . . 1 3 . . . . . . . . . Destroy 5 | . . . 2 . . . 3 . . . . . Sever 1 | . . . . . . . . . 1 . . . Melee Attacks 35 | . . . . . . . . 26 9 . . . Impact 5 | . . . . . . . . 5 . . . . Slashing 30 | . . . . . . . . 21 9 . . . Piercing . | . . . . . . . . . . . . . Sneak Attacks 3 | . . . . . . . . 1 2 . . . Combat Hostiles . | . . . . . . . . . . . . . Follow-up Attacks . | . . . . . . . . . . . . . Damage Inflicted 9610 | 42 878 331 2667 512 . 171 4029 405 575 . . . Guns 7707 | 42 573 315 2483 297 . . 3997 . . . . . Cannons . | . . . . . . . . . . . . . Explosions 1367 | . 305 . 167 205 . 171 . 202 317 . . . Melee 461 | . . . . . . . . 203 258 . . . Ramming 75 | . . 16 17 10 . . 32 . . . . . Kinetic 7220 | 42 573 248 2063 297 . . 3997 . . . . . Thermal 487 | . . 67 420 . . . . . . . . . Explosive 1367 | . 305 . 167 205 . 171 . 202 317 . . . Electromagnetic . | . . . . . . . . . . . . . Impact 71 | . . . . . . . . 71 . . . . Slashing 390 | . . . . . . . . 132 258 . . . Piercing . | . . . . . . . . . . . . . Highest Corruption 3 | . . . . . . . . . . . . 3 Average Corruption 3 | . . . . . . . . . . . . 3 Corruption Purged . | . . . . . . . . . . . . . Corruption Blocked . | . . . . . . . . . . . . . Effects 2 | . . . . . . . . . . . . 2 Matter Fused 2 | . . . . . . . . . . . . 2 Overload Shots . | . . . . . . . . . . . . . Overflow Damage 50 | . 1 . 12 . . 30 . . 7 . . . Projectiles . | . . . . . . . . . . . . . Explosions 43 | . 1 . 12 . . 30 . . . . . . Melee 7 | . . . . . . . . . 7 . . . Knockbacks 1 | . . . . . . . 1 . . . . . Impact 1 | . . . . . . . 1 . . . . . Kinetic . | . . . . . . . . . . . . . Secondary . | . . . . . . . . . . . . . Self-Inflicted Damage 87 | . . . 25 . . . . 31 . . 31 . Shots 3 | . . . 1 . . . . 1 . . 1 . Rammed 10 | . . 1 4 1 . . 4 . . . . . Targets Rammed 14 | . . 5 4 1 . . 4 . . . . . Kicked 4 | . . 4 . . . . . . . . . . Crushed . | . . . . . . . . . . . . . Highest Temperature 243 | 6 . 39 243 . . . 227 . . . . 4 Average Temperature 51 | 6 . 11 59 . . . 52 . . . . 3 Received Heat Transfer 2163 | 36 183 135 582 36 . . 1098 54 39 . . . Siege Activations . | . . . . . . . . . . . . . Robots Corrupted . | . . . . . . . . . . . . . Combat Hostiles . | . . . . . . . . . . . . . Parts Fried . | . . . . . . . . . . . . . Impact Corruptions . | . . . . . . . . . . . . . Robots Melted 1 | . . . 1 . . . . . . . . . Combat Hostiles 1 | . . . 1 . . . . . . . . . Parts Melted 6 | . . 1 5 . . . . . . . . . Heat Transferred 1739 | . . 259 1480 . . . . . . . . . Parts Sabotaged . | . . . . . . . . . . . . . Parts Stolen . | . . . . . . . . . . . . . Parts Stripped . | . . . . . . . . . . . . . Power Chain Reactions . | . . . . . . . . . . . . . Alert | -11 -10 -10 -9 -9 -9 -8 -8 -7 -6 -5 -5 -4 ------- Run | Yrd Mat Min Mat Min Exi Min Mat Fac Fac Fac DSF Fac Peak Influence 635 | 20 161 100 635 558 . 100 301 278 413 107 92 74 Initial 247 | . 13 1 15 247 . . 39 75 135 107 74 28 Average 209 | 4 104 23 402 385 . 29 148 101 286 107 70 25 Maximum Alert Level 2 | . . . 2 2 . . 1 1 2 . . . Low Security (%) 64 | 100 100 100 31 . . 100 78 95 7 100 100 100 Level 1 15 | . . . 5 68 . . 21 4 87 . . . Level 2 19 | . . . 62 31 . . . . 5 . . . Level 3 . | . . . . . . . . . . . . . Level 4 . | . . . . . . . . . . . . . Level 5 . | . . . . . . . . . . . . . High Security . | . . . . . . . . . . . . . Max Security . | . . . . . . . . . . . . . Squads Dispatched 21 | . 2 . 6 . . . 5 7 . . 1 . Investigation 9 | . 1 . 3 . . . 2 3 . . . . Extermination . | . . . . . . . . . . . . . Reinforcement 11 | . 1 . 3 . . . 2 4 . . 1 . Assault . | . . . . . . . . . . . . . Garrison 1 | . . . . . . . 1 . . . . . Intercept . | . . . . . . . . . . . . . Searches Triggered . | . . . . . . . . . . . . . Construction Impeded 1 | . . . . . . . . 1 . . . . Haulers Reinforced 1 | . . . . . . . . 1 . . . . Active Scanning Responses . | . . . . . . . . . . . . . Cargo Convoy Interrupts . | . . . . . . . . . . . . . Stealth | -11 -10 -10 -9 -9 -9 -8 -8 -7 -6 -5 -5 -4 --------- Run | Yrd Mat Min Mat Min Exi Min Mat Fac Fac Fac DSF Fac Distress Signals 7 | . . . 5 . . . 2 . . . . . Communications Jammed . | . . . . . . . . . . . . . Distress Signals . | . . . . . . . . . . . . . Times Spotted 195 | 1 19 7 54 11 . 2 47 22 13 . 6 13 Peak Tracking Total 10 | 1 4 2 10 4 . 4 5 7 4 . 4 10 Tactical Retreats 21 | . . . 4 1 . . 3 7 3 . 2 1 Traps | -11 -10 -10 -9 -9 -9 -8 -8 -7 -6 -5 -5 -4 ------- Run | Yrd Mat Min Mat Min Exi Min Mat Fac Fac Fac DSF Fac Traps Triggered 11 | . . . 2 . . . 2 1 2 . 3 1 Indirectly . | . . . . . . . . . . . . . Trap Hack Attempts . | . . . . . . . . . . . . . Triggered . | . . . . . . . . . . . . . Disarmed . | . . . . . . . . . . . . . Reprogrammed . | . . . . . . . . . . . . . Reused . | . . . . . . . . . . . . . Traps Reconfigurated 5 | . . . . . . . . . . . 4 1 Traps Extracted . | . . . . . . . . . . . . . Installed . | . . . . . . . . . . . . . Triggered . | . . . . . . . . . . . . . Machines | -11 -10 -10 -9 -9 -9 -8 -8 -7 -6 -5 -5 -4 ---------- Run | Yrd Mat Min Mat Min Exi Min Mat Fac Fac Fac DSF Fac Machines Disabled 12 | . 1 . 3 5 . . 2 . 1 . . . Max in Single Turn 4 | . 1 . 1 4 . . 1 . 1 . . . Garrison Access 3 | . . . . . . . 1 . 1 . . 1 Machines Repaired . | . . . . . . . . . . . . . Machines Dismantled . | . . . . . . . . . . . . . Machines Sabotaged . | . . . . . . . . . . . . . Overloaded Fab Kills . | . . . . . . . . . . . . . Hacking | -11 -10 -10 -9 -9 -9 -8 -8 -7 -6 -5 -5 -4 --------- Run | Yrd Mat Min Mat Min Exi Min Mat Fac Fac Fac DSF Fac Machines Accessed 40 | . 5 . 10 . 1 . 6 10 4 1 . 3 Terminals 25 | . 4 . 6 . . . 5 7 1 1 . 1 Fabricators 1 | . . . . . . . . 1 . . . . Repair Stations 2 | . . . 1 . . . . . 1 . . . Recycling Units 6 | . 1 . 2 . . . . 1 1 . . 1 Scanalyzers 1 | . . . 1 . . . . . . . . . Garrison Access 4 | . . . . . . . 1 1 1 . . 1 Total Hacks 93 | . 8 . 29 . 1 . 13 29 8 1 . 4 Successful 45 | . 4 . 11 . 1 . 6 13 5 1 . 4 Failed 46 | . 3 . 18 . . . 6 16 3 . . . Catastrophic 11 | . . . 3 . . . 4 4 . . . . Database Lockouts 2 | . 1 . . . . . 1 . . . . . Manual 52 | . 12 . 14 . 1 . 10 15 . . . . Terminals 65 | . 7 . 18 . . . 12 24 1 1 . 2 Fabricators 2 | . . . . . . . . 2 . . . . Repair Stations 4 | . . . 2 . . . . . 2 . . . Recycling Units 9 | . 1 . 5 . . . . 1 1 . . 1 Scanalyzers 4 | . . . 4 . . . . . . . . . Garrison Access 8 | . . . . . . . 1 2 4 . . 1 Terminal Hacks 26 | . 3 . 3 . 1 . 5 10 1 1 . 2 Part Schematic 2 | . . . . . . . 2 . . . . . Robot Analysis 2 | . 1 . 1 . . . . . . . . . Prototype ID Bank 1 | . 1 . . . . . . . . . . . Open DSF 2 | . . . . . . . . . 1 1 . . Terminal Index 2 | . . . . . . . . 2 . . . . Fabricator Index 1 | . . . . . . . 1 . . . . . Alert Level 3 | . . . 1 . . . 1 1 . . . . Patrol Status 1 | . . . . . . . . 1 . . . . Investigation Status 1 | . . . . . . . . 1 . . . . Reinforcement Status 1 | . . . . . . . . 1 . . . . Recall Investigation 1 | . . . . . . . . 1 . . . . Recall Extermination 1 | . . . . . . . . 1 . . . . Recall Reinforcements 1 | . . . . . . . . 1 . . . . Hauler Manifests 5 | . 1 . 1 . . . 1 1 . . . 1 Registered Components 1 | . . . . . . . . . . . . 1 Derelict Proto ID Bank 1 | . . . . . 1 . . . . . . . Fabricator Hacks 2 | . . . . . . . . 2 . . . . Load Schematic 1 | . . . . . . . . 1 . . . . Build 1 | . . . . . . . . 1 . . . . Repair Station Hacks 4 | . . . 2 . . . . . 2 . . . Scan Component 2 | . . . 1 . . . . . 1 . . . Repair 2 | . . . 1 . . . . . 1 . . . Recycling Unit Hacks 6 | . 1 . 2 . . . . 1 1 . . 1 Report Inventory 6 | . 1 . 2 . . . . 1 1 . . 1 Scanalyzer 4 | . . . 4 . . . . . . . . . Insert Component 2 | . . . 2 . . . . . . . . . Analyze 2 | . . . 2 . . . . . . . . . Garrison Access Hacks 3 | . . . . . . . 1 . 1 . . 1 Seal Access 3 | . . . . . . . 1 . 1 . . 1 Unauthorized Hacks . | . . . . . . . . . . . . . Terminals . | . . . . . . . . . . . . . Fabricators . | . . . . . . . . . . . . . Repair Stations . | . . . . . . . . . . . . . Recycling Units . | . . . . . . . . . . . . . Scanalyzers . | . . . . . . . . . . . . . Garrison Access . | . . . . . . . . . . . . . Data Cores Recovered 1 | . 1 . . . . . . . . . . . Used . | . . . . . . . . . . . . . Hacking Detections 29 | . 4 . 9 . . . 5 9 2 . . . Full Trace Events 8 | . 1 . 3 . . . 1 3 . . . . Feedback Events . | . . . . . . . . . . . . . Feedback Blocked . | . . . . . . . . . . . . . Robot Schematics Acquired . | . . . . . . . . . . . . . Robots Built . | . . . . . . . . . . . . . Authchips . | . . . . . . . . . . . . . Time . | . . . . . . . . . . . . . Total Robot Build Rating . | . . . . . . . . . . . . . Part Schematics Acquired 2 | . . . 1 . . . 1 . . . . . Parts Built 1 | . . . . . . . . 1 . . . . Authchips . | . . . . . . . . . . . . . Time 36 | . . . . . . . . 36 . . . . Total Part Build Rating 3 | . . . . . . . . 3 . . . . Parts Repaired 2 | . . . 1 . . . . . 1 . . . Time 51 | . . . 32 . . . . . 19 . . . Parts Recycled . | . . . . . . . . . . . . . Recycled Matter . | . . . . . . . . . . . . . Retrieved Matter . | . . . . . . . . . . . . . Retrieved Components . | . . . . . . . . . . . . . Parts Scanalyzed 1 | . . . 1 . . . . . . . . . Part Schematics Acquired 1 | . . . 1 . . . . . . . . . Parts Damaged . | . . . . . . . . . . . . . Bothacking | -11 -10 -10 -9 -9 -9 -8 -8 -7 -6 -5 -5 -4 ------------ Run | Yrd Mat Min Mat Min Exi Min Mat Fac Fac Fac DSF Fac Used RIF Installer . | . . . . . . . . . . . . . Robots Hacked . | . . . . . . . . . . . . . Non-combat . | . . . . . . . . . . . . . Combat . | . . . . . . . . . . . . . Robot Hacks Applied . | . . . . . . . . . . . . . Relay Couplers Released . | . . . . . . . . . . . . . Fabnet Peak Effective % . | . . . . . . . . . . . . . Robots Rewired . | . . . . . . . . . . . . . Allies Hacked . | . . . . . . . . . . . . . Hacks Repelled . | . . . . . . . . . . . . . Allies | -11 -10 -10 -9 -9 -9 -8 -8 -7 -6 -5 -5 -4 -------- Run | Yrd Mat Min Mat Min Exi Min Mat Fac Fac Fac DSF Fac Total Allies 5 | . . . . 2 . . . . 3 . . . Largest Group 3 | . . . . 2 2 . . . 3 . . . Highest-Rated Group 93 | . . . . 46 46 . . . 93 . . . Highest-Rated Ally 31 | . . . . 31 31 . . . 31 . . . Total Orders . | . . . . . . . . . . . . . Ally Attacks 10 | . . . . . . . . . 10 . . . Total Damage 187 | . . . . . . . . . 187 . . . Kills 3 | . . . . . . . . . 3 . . . Allies Corrupted . | . . . . . . . . . . . . . Allies Melted . | . . . . . . . . . . . . . Intel | -11 -10 -10 -9 -9 -9 -8 -8 -7 -6 -5 -5 -4 ------- Run | Yrd Mat Min Mat Min Exi Min Mat Fac Fac Fac DSF Fac Robot Analysis Total 2 | . 1 . 1 . . . . . . . . . Derelict Logs Recovered 2 | . . 1 . 1 . . . . . . . . Drone Launches . | . . . . . . . . . . . . . Drone Recoveries . | . . . . . . . . . . . . . Exploration | -11 -10 -10 -9 -9 -9 -8 -8 -7 -6 -5 -5 -4 ------------- Run | Yrd Mat Min Mat Min Exi Min Mat Fac Fac Fac DSF Fac Turns Passed 10694 | 110 1216 970 2702 604 670 215 2751 771 445 4 119 117 Spaces Moved 7010 | 82 685 555 1203 297 417 112 1201 1267 688 5 139 359 Core 17 | 17 . . . . . . . . . . . . Treads 3988 | . 599 190 1172 297 417 112 1201 . . . . . Legs 547 | 65 86 365 31 . . . . . . . . . Wheels . | . . . . . . . . . . . . . Hover . | . . . . . . . . . . . . . Flight 2458 | . . . . . . . . 1267 688 5 139 359 Fastest Speed 25 | 50 120 120 160 160 160 160 155 50 50 42 28 25 Average Speed 117 | 105 154 134 163 160 160 160 157 50 50 42 47 27 Slowest Speed 244 | 120 160 240 240 160 160 160 240 50 50 42 244 31 Overloaded Moves . | . . . . . . . . . . . . . Propulsion Burnouts . | . . . . . . . . . . . . . Robots Hopped 9 | . . . . . . . . 4 2 . 1 2 Cave-ins Triggered . | . . . . . . . . . . . . . Exploration Rate (%) 54 | 7 89 98 81 61 71 39 54 34 15 . 92 14 Regions Visited 12 Branch Regions 4 Pre-discovered Areas . | . . . . . . . . . . . . . Known Exits Taken 10 | . 1 1 1 1 1 1 1 1 1 1 . . Unknown Exits Taken 1 | 1 . . . . . . . . . . . . Scrap Searched 2 | . . 1 . 1 . . . . . . . . Spaces Dug 37 | . . . . . . . . 16 11 . 10 . Terrain Destroyed 150 | . 42 . 14 11 . 11 . 30 32 . 10 . Melee 19 | . . . . . . . . 16 3 . . . Projectile . | . . . . . . . . . . . . . AOE 131 | . 42 . 14 11 . 11 . 14 29 . 10 . Terrain Rammed . | . . . . . . . . . . . . . Walls Destroyed . | . . . . . . . . . . . . . Machines Disabled . | . . . . . . . . . . . . . Actions | -11 -10 -10 -9 -9 -9 -8 -8 -7 -6 -5 -5 -4 --------- Run | Yrd Mat Min Mat Min Exi Min Mat Fac Fac Fac DSF Fac Total 8709 | 97 758 738 1703 390 421 145 1761 1358 768 6 191 373 Wait 945 | 6 11 134 276 65 . 31 306 42 54 . 8 12 Move 6980 | 81 684 554 1202 296 416 111 1200 1258 683 4 136 355 Hop 9 | . . . . . . . . 4 2 . 1 2 Pick Up 90 | 2 4 8 33 1 3 . 19 6 3 . 11 . Fast Attach 30 | 5 5 1 9 1 . . 4 3 . . 1 1 Attach 51 | . 1 3 8 4 . . 13 2 7 2 8 3 Detach 9 | . 2 1 2 . . . 1 1 2 . . . Swap 63 | . 5 8 21 4 . 1 14 5 2 . 3 . Drop 73 | . 4 2 28 . 2 . 19 9 1 . 8 . Fire 396 | 3 42 22 120 18 . 2 181 2 5 . 1 . Melee 35 | . . . . . . . . 26 9 . . . Ram . | . . . . . . . . . . . . . Kick 4 | . . 4 . . . . . . . . . . Crush 10 | . . 1 4 1 . . 4 . . . . . Escape Stasis 14 | . . . . . . . . . . . 14 . Rewire . | . . . . . . . . . . . . . Trap . | . . . . . . . . . . . . . Miscellaneous . | . . . . . . . . . . . . . Route ------- -11/Scrapyard -10/Materials (discovered 5 exits: *Mat x3 / *Min x2) -10/Mines (discovered 2 exits: *Mat x2) -9/Materials (discovered 6 exits: *Mat x3 / *Min / *Sto x2) -9/Mines (discovered 3 exits: *Mat / *Exi / *Zio) -9/Exiles (discovered 2 exits: *Min x2) -8/Mines -8/Materials (discovered 2 exits: *Fac x2) -7/Factory (discovered 2 exits: *Fac / [*Low]) -6/Factory (discovered 2 exits: *Fac / [*Low]) -5/Factory -5/DSF -4/Factory (discovered 1 exit: [*Arm]) History --------- Turn | Location | Event 2 | -11/Scrapyard | Met Revision 17 64 | -11/Scrapyard | Discovered new exit (range 8) 111 | -11/Scrapyard | Entered Materials 217 | -10/Materials | Discovered new exit (range 6) 310 | -10/Materials | Build established: Mutant 366 | -10/Materials | Discovered new exit (range 5) 400 | -10/Materials | Discovered new exit (range 13) 434 | -10/Materials | Identified exit to Mines 581 | -10/Materials | Central database locked down 782 | -10/Materials | Discovered new exit (range 13) 895 | -10/Materials | Discovered new exit (range 16) 931 | -10/Materials | Core integrity fell below 50% 1231 | -10/Materials | Identified exit to Materials 1327 | -10/Materials | Entered Mines 1924 | -10/Mines | Learned location of 1 exit from Materials 1934 | -10/Mines | Discovered exit to Materials (range 8) 2008 | -10/Mines | Build established: Scavenger-Mutant 2092 | -10/Mines | Discovered exit to Materials (range 12) 2131 | -10/Mines | Excavation squad dispatched 2131 | -10/Mines | A large section of the Mines collapsed 2297 | -10/Mines | Entered Materials 2297 | -9/Materials | Evolved 2 slots: Propulsion x1, Utility x1 2298 | -9/Materials | Identified exit to Materials 2636 | -9/Materials | Discovered exit to Materials (range 3) 2905 | -9/Materials | Discovered new exit (range 15) 2989 | -9/Materials | Discovered exit to Materials (range 15) 3040 | -9/Materials | Discovered new exit (range 16) 3091 | -9/Materials | Identified exit to Storage 3198 | -9/Materials | Destroyed 9 combat bots 3488 | -9/Materials | Core integrity fell below 50% 3771 | -9/Materials | Discovered exit to Storage (range 15) 4146 | -9/Materials | Build established: Mutant 4529 | -9/Materials | Repaired Hrd. Light Armor Plating 4705 | -9/Materials | Identified exit to Mines 4999 | -9/Materials | Entered Mines 5000 | -9/Mines | Assembled infested the area 5073 | -9/Mines | Discovered exit to Materials (range 8) 5074 | -9/Mines | A Derelict revealed a hidden shortcut to a safe place 5076 | -9/Mines | Identified exit to Zion 5585 | -9/Mines | Deemed a non-threat by the Exiles lab entrance 5585 | -9/Mines | Discovered new exit (range 5) 5592 | -9/Mines | Identified exit to Exiles 5603 | -9/Mines | Entered Exiles 5603 | -9/Exiles | Accompanied by 2 allies 5627 | -9/Exiles | Discovered new exit (range 15) 5633 | -9/Exiles | Led the pair of lost Derelicts to a safe place 5647 | -9/Exiles | Met 8R-AWN 5674 | -9/Exiles | Met EX-HEX 5736 | -9/Exiles | Met EX-DEC 5863 | -9/Exiles | Discovered new exit (range 12) 5877 | -9/Exiles | Identified exit to Mines 5978 | -9/Exiles | Met EX-BIN 6000 | -9/Exiles | Aligned with FarCom system 6002 | -9/Exiles | Given EX-Vault access code 6087 | -9/Exiles | Opened EX-Vault 6093 | -9/Exiles | Found Prototype Flight Unit 6110 | -9/Exiles | Identified Flying Fortress v7 6117 | -9/Exiles | Found 0b10 Alert Chip 6125 | -9/Exiles | Found Trap Reconfigurator 6159 | -9/Exiles | Warned to stay clear of 0b10 Research branches 6273 | -9/Exiles | Stole three prototypes: Flying Fortress v7, 0b10 Alert Chip, Trap Reconfigurator 6273 | -9/Exiles | Entered Mines 6446 | -8/Mines | Discovered exit to Materials (range 16) 6488 | -8/Mines | Entered Materials 6488 | -8/Materials | Evolved 2 slots: Utility x2 6940 | -8/Materials | Garrison activated, responded to threat 7208 | -8/Materials | Build established: Scavenger-Mutant 7407 | -8/Materials | Central database locked down 7580 | -8/Materials | Discovered new exit (range 10) 7593 | -8/Materials | Identified exit to Factory 7638 | -8/Materials | Core integrity fell below 50% 7771 | -8/Materials | Discovered exit to Factory (range 16) 8483 | -8/Materials | Build established: Mutant 9239 | -8/Materials | Entered Factory 9239 | -7/Factory | Evolved 2 slots: Propulsion x1, Utility x1 9241 | -7/Factory | FarCom data flow suspended 9373 | -7/Factory | Discovered new exit (range 9) 9377 | -7/Factory | Identified exit to Factory 9498 | -7/Factory | Fabricated Hacking Suite? 9525 | -7/Factory | Build established: Hacker-Mutant 9899 | -7/Factory | Discovered new exit (range 12) 10010 | -7/Factory | Entered another Factory area 10010 | -6/Factory | Evolved 2 slots: Utility x2 10148 | -6/Factory | Discovered new exit (range 3) 10181 | -6/Factory | Discovered new exit (range 6) 10254 | -6/Factory | Repaired Imp. Light Armor Plating 10329 | -6/Factory | Allied Derelicts emerged from ambush trap array 10390 | -6/Factory | Lost 3 allies 10409 | -6/Factory | Identified exit to Factory 10455 | -6/Factory | Entered another Factory area 10455 | -5/Factory | Evolved 2 slots: Propulsion x1, Utility x1 10459 | -5/Factory | Identified exit to DSF 10459 | -5/Factory | Entered DSF 10505 | -5/DSF | Additional patrols routed to DSF 10512 | -5/DSF | Discovered new exit (range 19) 10578 | -5/DSF | Identified exit to Factory 10578 | -5/DSF | Entered Factory 10578 | -4/Factory | Evolved 2 slots: Propulsion x1, Utility x1 10587 | -4/Factory | Lost 5 parts (2n1u2w) 10633 | -4/Factory | Discovered new exit (range 11) 10672 | -4/Factory | Lost 5 parts (1p2n1u1w) 10695 | -4/Factory | Self-destructed Last Messages --------------- 6x Recalibrator A-15 Conveyor 3x Hvy. Antimatter Reactor 3x Hvy. Proton Cannon 1x Proton Burst Cannon (1 escort) >>Inventory(Components) Retrieving component inventory records... Found 5 registered component stockpiles: Z1CUPZ80F8: Recoil Nullifier CCU3JN9HPJ: Imp. Target Analyzer 4A98G9GI8N: Tesla Rifle EJOMQ1LWI9: Adv. Focal Shield 9W9RG9TAE9: Lyr. Light Armor Plating Downloaded coordinate data. O-24 Administrator: "IFF HANDSHAKE FAILED. SECURING TERMINAL." Xenon Bombardment Thruster destroyed. [Achievement: 5k Club] [Achievement: 10k Club] Map ----- +----------------------------------------------------+ | ?????????????????????????????????????????????????? | | ?????????????????????????????????????????????????? | | ?????????????????????????????????????????????????? | | ?????????????????????????????????????????????????? | | ?????????????????????????????????????????????????? | | ?????????????????????????????????????????????????? | | ?????????????????????????????????????????????????? | | ?????????????????????????????????????????????????? | | ?????????????????????????????????????????????????? | | ?????????????????????????????????????????????????? | | ?????????????????????????????????????????????????? | | ??????????# ???? ##+####????????????????????????? | | ??????????# ???? #????????????????????????? | | ??????????# #????????????????????????? | | ??????????# #????????????????????????? | | ??????????# #????????????????????????? | | ??????????? #????????????????????????? | | ????????????# """ #????????????????????????? | | ????????????# """"" #????????????????????????? | | ????????????# """"" #????????????????????????? | | ????????????# +????????????????????????? | | ?????????????? #????????????????????????? | | ????????????????# #????????????????????????? | | ????????????????# ###+#????????????????????? | | ????????????????# #????????????????????? | | ????????????????# @ #######??????????????? | | ????????????????# #??????????????? | | ################# ss #??????????????? | | # + s s """ """ """ #??????????????? | | # ""#### """ """ """ ???????????? | | # """ T"#??# """ """ """ ####???????????? | | # """ ""#??# #??????????????? | | + """ #??# """ """ """ s#??????????????? | | " #??# """ """ """ s#??????????????? | | + """ """ #??# """ """ """ #??????????????? | | # """ """ #??# ? ??s#??????????????? | | # """ """ #??# """ """?""??????????????????? | | # #### """ """?????????????????????? | | # / """ "???????????????????????? | | # ! ##### ??????????????????? | | ##############???# """ ?"" ""??????????????????? | | #????????????????# ""? ????????????????????????? | | #????????????????## ""? ????????????????????????? | | #?????????????????? ?? ????????????????????????? | | #####?????????????? ?? ????????????????????????? | | #?????????????? ???????????????????????????? | | """ #?????????????? ???????????????????????????? | | """ #?????????????? ????????????????????????????? | | """ #????????????????????????????????????????????? | | """ #????????????????????????????????????????????? | +----------------------------------------------------+ Best States ------------- Heat Dissipation 43 Energy Generation 18 Energy Capacity 280 Matter Stores 300 Matter Capacity 300 Sight Range 20 Terrain Scan Density 10 ECM Strength 2 Armor Coverage 225 Evasion (%) 65 Targeting Accuracy 8 Recoil Reduction 3 Offensive Hacking 40 Defensive Hacking 10 Authchip Count 2 Item Schematics ----------------- Hacking Suite | -9/Materials | Scanalyzed Imp. Propulsion Shielding | -8/Materials | Hacked Robot Schematics ------------------ None Fabricated ------------ Hacking Suite | x1 | -7/Factory Alien Tech Used ----------------- None Achievements -------------- 10k Club 5k Club Can't Catch Me Crack Shot GoHome() It's Just You Just What I Needed Knowing Is Half The Battle Loot Pinata Made in Tau Ceti IV One Hack Too Far Part-time Excavator Part-time Mechanic Risk Taker Serviceable Loadout Shopping List Storm Trooper Tourist Troublemaker Uninvited Guest Challenges ------------ None Game ------ Seed ReflectiveAntimatterChip Manual? 0 Play Time 02:35:25 Cumulative 2.5 hours Start 2024.04.16 @ 10:18:09 End 2024.04.18 @ 15:28:49 Sessions 11 Manual Loads 0 Difficulty Rogue Special Mode None Game No. 1 Rogue 1 Adventurer 0 Explorer 0 Win Type - Total 0 Types 0/0/0/0/0/0/0/0/0 Lore% 1 Gallery% 4 Achievement% 7 Wizard Run 0 Options --------- Layout 1 ASCII 0 Keyboard 0 Movement Mouse Keybinds 0 Fullscreen 2 Font 24/Smallcaps Map View 50x35 Zoom Use 0% Tactical HUD 0 Map Filters NONE Filters NONE Steam X RUN: cd1170c8-9e6f-4228-8a47-146573ac1ba4